bitfinex/quotes_BTCUSD_20260101
["timestamp","ask_amount","ask_price","bid_price","bid_amount"]
[1767276126767,0.13593872,87926.0,87924.0,0.06824021]
[1767276127824,0.13593872,87926.0,87924.0,0.01037556]
[1767276128447,0.13593872,87926.0,87923.0,0.01137358]
[1767276129072,0.000549,87923.0,87921.0,0.01137384]
[1767276129973,0.13593872,87926.0,87921.0,0.01137384]
[1767276130790,0.13593872,87926.0,87922.0,0.01137371]
[1767276131789,0.13593872,87926.0,87919.0,0.0113741]
[1767276131934,0.13593872,87926.0,87921.0,0.01137384]
[1767276132133,0.13593872,87926.0,87920.0,0.01137397]
[1767276132660,0.13593872,87926.0,87919.0,0.0113741]
[1767276132865,0.000549,87920.0,87919.0,0.06007692]
[1767276133064,0.13593872,87926.0,87919.0,0.06007692]
[1767276133221,0.13593872,87926.0,87921.0,0.01137384]
[1767276133628,0.13593872,87926.0,87919.0,0.06007692]
[1767276133824,0.13593872,87926.0,87921.0,0.01137384]
[1767276134291,0.13593872,87926.0,87920.0,0.01137397]
[1767276134503,0.13593872,87926.0,87921.0,0.01137384]
[1767276134674,0.000549,87921.0,87918.0,0.00051634]
[1767276134850,0.000549,87921.0,87918.0,3.4e-07]
[1767276135252,0.03598595,87925.0,87918.0,3.4e-07]
[1767276135476,0.03523219,87924.0,87918.0,3.4e-07]
[1767276135655,0.01064624,87923.0,87918.0,3.4e-07]
[1767276135855,0.02458595,87924.0,87918.0,3.4e-07]
[1767276135856,0.01064624,87922.0,87918.0,3.4e-07]
[1767276136058,0.01064624,87921.0,87918.0,3.4e-07]
[1767276136240,0.02458595,87924.0,87918.0,3.4e-07]
[1767276136439,0.01064524,87923.0,87918.0,3.4e-07]
[1767276136648,0.01064524,87922.0,87918.0,3.4e-07]
[1767276136848,0.02458595,87924.0,87918.0,3.4e-07]
[1767276137047,0.01064523,87923.0,87918.0,3.4e-07]
[1767276137276,0.01064523,87922.0,87918.0,3.4e-07]
[1767276137440,0.02458595,87924.0,87918.0,3.4e-07]
[1767276137663,0.01064429,87923.0,87918.0,3.4e-07]
[1767276137875,0.01064429,87922.0,87915.0,0.0003107]
[1767276138168,0.02458595,87924.0,87915.0,0.0003107]
[1767276138527,0.0106434,87923.0,87915.0,0.0003107]
[1767276138645,0.0106434,87922.0,87915.0,0.0003107]
[1767276138862,0.02458595,87924.0,87915.0,0.0003107]
[1767276139059,0.0106434,87923.0,87915.0,0.0003107]
[1767276139305,0.0106434,87922.0,87915.0,0.0003107]
[1767276139500,0.02458595,87924.0,87915.0,0.0003107]
[1767276139715,0.01064259,87923.0,87915.0,0.0003107]
[1767276139916,0.01064259,87922.0,87915.0,0.0003107]
[1767276140214,0.02458595,87924.0,87915.0,0.0003107]
[1767276140425,0.01064188,87923.0,87915.0,0.0003107]
[1767276140625,0.01064188,87922.0,87915.0,0.0003107]
[1767276140787,0.02458595,87924.0,87915.0,0.0003107]
[1767276140988,0.01064189,87923.0,87915.0,0.0003107]
[1767276141207,0.02458595,87923.0,87915.0,0.0003107]
[1767276142526,0.02458595,87922.0,87915.0,0.0003107]
[1767276142742,0.02458595,87921.0,87915.0,0.0003107]
[1767276142886,0.02458595,87920.0,87915.0,0.0003107]
[1767276143088,0.0114,87925.0,87915.0,0.0003107]
[1767276143292,0.10171384,87924.0,87915.0,0.0003107]
[1767276143515,0.03521437,87923.0,87915.0,0.0003107]
[1767276143858,0.02457449,87923.0,87915.0,0.0003107]
[1767276145035,0.02457449,87922.0,87915.0,0.0003107]
[1767276145269,0.02457449,87921.0,87915.0,0.0003107]
[1767276145472,0.02457449,87920.0,87915.0,0.0003107]
[1767276148190,0.02457449,87920.0,87915.0,0.01168532]
[1767276148577,0.03352049,87920.0,87915.0,0.0003107]
[1767276153128,0.03352049,87920.0,87915.0,7e-07]
[1767276154899,0.06601707,87920.0,87915.0,7e-07]
[1767276155102,0.03521326,87919.0,87915.0,7e-07]
[1767276155300,0.02457449,87919.0,87904.0,0.04554732]
[1767276155677,0.13648772,87911.0,87904.0,0.03703957]
[1767276156195,0.13648772,87911.0,87904.0,0.04843957]
[1767276156395,0.13621172,87911.0,87904.0,0.05981561]
[1767276156817,0.13621172,87911.0,87904.0,0.04843957]
[1767276157646,0.13621172,87911.0,87904.0,0.05981561]
[1767276158251,0.13621172,87911.0,87904.0,0.04843957]
[1767276158451,0.13621172,87911.0,87904.0,0.05981561]
[1767276158834,0.13621172,87911.0,87904.0,0.04843957]
[1767276159502,0.13621172,87911.0,87905.0,0.04554732]
[1767276159751,0.14983289,87911.0,87905.0,0.04554732]
[1767276160438,0.14983289,87911.0,87909.0,0.04554732]
[1767276160640,0.13621172,87911.0,87909.0,0.04554732]
[1767276164184,0.14515772,87911.0,87909.0,0.04554732]
[1767276165397,0.14515772,87911.0,87903.0,0.04569262]
[1767276165601,0.000549,87909.0,87905.0,0.0114]
[1767276166163,0.02459367,87910.0,87905.0,0.0114]
[1767276166371,0.02459367,87910.0,87905.0,0.05694732]
[1767276166594,0.02459367,87910.0,87904.0,0.0114]
[1767276171166,0.14515772,87911.0,87904.0,0.0114]
[1767276171308,0.02458771,87910.0,87904.0,0.0114]
[1767276173691,0.008946,87905.0,87904.0,0.0114]
[1767276173845,0.008396,87905.0,87904.0,0.05820228]
[1767276174445,0.008396,87905.0,87904.0,0.0114]
[1767276177909,0.02458812,87917.0,87904.0,0.02277604]
[1767276178127,0.01064517,87916.0,87904.0,0.02277604]
[1767276178345,0.02458812,87917.0,87904.0,0.02277604]
[1767276178346,0.01064517,87915.0,87904.0,0.02277604]
[1767276178544,0.01064517,87914.0,87904.0,0.02277604]
[1767276178740,0.01064517,87913.0,87904.0,0.02277604]
[1767276178942,0.02458812,87917.0,87904.0,0.02277604]
[1767276179189,0.0106456,87916.0,87904.0,0.0114]
[1767276179370,0.0106456,87915.0,87904.0,0.0114]
[1767276179572,0.0106456,87914.0,87904.0,0.0114]
[1767276179897,0.13648772,87912.0,87904.0,0.0114]
[1767276180059,0.02458812,87911.0,87904.0,0.0114]
[1767276181052,0.03735894,87911.0,87904.0,0.0114]
[1767276181238,0.02458812,87910.0,87903.0,0.01137617]
[1767276181453,0.02458812,87910.0,87904.0,0.01137604]
[1767276181665,0.02458812,87910.0,87905.0,0.01137591]
[1767276181847,0.02458812,87910.0,87907.0,0.01137565]
[1767276182103,0.04213512,87918.0,87910.0,0.05687581]
[1767276182310,0.0114,87921.0,87913.0,0.04680228]
[1767276183190,0.03348344,87919.0,87876.0,0.04680228]
[1767276183402,0.01475665,87920.0,87870.0,4.455141]
[1767276183403,0.44489116,87893.0,87885.0,0.00995332]
[1767276183610,0.44489116,87893.0,87880.0,0.04700228]
[1767276183611,0.13648772,87884.0,87880.0,0.04700228]
[1767276183811,0.03348344,87894.0,87880.0,0.04700228]
[1767276183812,0.13648772,87886.0,87880.0,0.04700228]
[1767276184385,0.13648772,87886.0,87880.0,0.05838143]
[1767276184594,0.13684102,87886.0,87881.0,0.01137902]
[1767276185032,0.13684102,87886.0,87880.0,0.05838143]
[1767276185033,0.15052512,87886.0,87880.0,0.0002]
[1767276185229,0.0002,87882.0,87880.0,0.0002]
[1767276185404,0.15052512,87886.0,87880.0,5.1e-05]
[1767276186011,0.13648772,87881.0,87880.0,5.1e-05]
[1767276186404,0.0140374,87886.0,87880.0,0.01143015]
[1767276186671,0.0003533,87886.0,87884.0,0.0568931]
[1767276186877,0.13648772,87885.0,87883.0,0.01137876]
[1767276187082,0.13613872,87885.0,87883.0,0.01137876]
[1767276187219,0.13613872,87885.0,87882.0,0.01137889]
[1767276187831,0.13613872,87885.0,87883.0,0.05689382]
[1767276188230,0.13109014,87885.0,87883.0,0.05689382]
[1767276188461,0.01144,87892.0,87891.0,0.04680228]
[1767276188680,0.01144,87892.0,87891.0,0.01146211]
[1767276188981,6.461e-05,87891.0,87889.0,0.11507009]
[1767276189171,0.01144,87892.0,87889.0,0.11507009]
[1767276189920,0.01144,87896.0,87892.0,0.05817987]
[1767276190218,0.01144,87896.0,87892.0,0.04680228]
[1767276191104,0.01144,87896.0,87890.0,0.01137785]
[1767276191497,0.01144,87896.0,87889.0,0.01137798]
[1767276191824,0.01144,87896.0,87890.0,0.01137785]
[1767276191997,0.01144,87896.0,87891.0,0.01137772]
[1767276192563,0.01144,87896.0,87893.0,0.01137747]
[1767276192700,0.01144,87896.0,87893.0,0.04680228]
[1767276194582,0.09019944,87907.0,87893.0,0.05817975]
[1767276194583,0.01144,87900.0,87893.0,0.05817975]
[1767276194885,0.01144,87900.0,87895.0,0.05817949]
[1767276195061,0.01144,87900.0,87895.0,0.04680228]
[1767276195223,0.01144,87900.0,87895.0,0.01137721]
[1767276195960,0.01144,87900.0,87895.0,0.05817949]
[1767276196721,0.03648772,87901.0,87899.0,0.04680228]
[1767276196927,0.13663602,87909.0,87904.0,0.01050707]
[1767276197123,0.13663602,87909.0,87906.0,0.01137578]
[1767276197326,0.0001483,87909.0,87906.0,0.01137578]
[1767276197581,0.0001483,87909.0,87904.0,0.01050707]
[1767276197780,0.0001483,87909.0,87904.0,0.01137604]
[1767276197966,0.0001483,87909.0,87906.0,0.01137578]
[1767276198142,0.0001483,87909.0,87906.0,0.06825425]
[1767276199177,0.0001483,87909.0,87906.0,0.01137578]
[1767276199827,0.0001483,87909.0,87906.0,0.06825424]
[1767276200896,1e-08,87909.0,87907.0,0.01887284]
[1767276201086,1e-08,87909.0,87908.0,0.01887284]
[1767276210096,1e-08,87909.0,87907.0,0.05687773]
[1767276211785,1e-08,87909.0,87907.0,0.07575057]
[1767276211948,1e-08,87909.0,87908.0,0.01887284]
[1767276213213,0.000549,87908.0,87905.0,0.01137591]
[1767276213426,1e-08,87909.0,87906.0,0.02277578]
[1767276213594,1e-08,87909.0,87906.0,0.0114]
[1767276214319,1e-08,87909.0,87907.0,0.0114]
[1767276214481,0.04988541,87909.0,87907.0,0.01085]
[1767276216181,0.04988541,87909.0,87901.0,0.01137643]
[1767276216383,0.0498854,87907.0,87890.0,0.06826702]
[1767276216588,0.0498854,87899.0,87881.0,0.04904581]
[1767276216791,0.0498854,87899.0,87889.0,0.44510398]
[1767276216986,0.0498854,87899.0,87890.0,0.0114]
[1767276217889,0.0498854,87907.0,87890.0,0.0114]
[1767276218091,0.0498854,87905.0,87890.0,0.0114]
[1767276218291,0.0498854,87904.0,87890.0,0.0114]
[1767276218494,0.49498938,87900.0,87887.0,0.00014829]
[1767276218695,0.0498854,87899.0,87887.0,0.00014829]
[1767276219113,0.13648772,87892.0,87887.0,0.00014829]
[1767276219715,0.18637312,87892.0,87887.0,0.00014829]
[1767276220703,0.13593872,87892.0,87887.0,0.01152653]
[1767276220913,0.0498854,87898.0,87887.0,0.01152653]
[1767276221112,0.0498854,87898.0,87888.0,0.44510398]
[1767276221339,0.0498854,87898.0,87887.0,0.00014829]
[1767276221918,0.0498854,87898.0,87887.0,0.01152653]
[1767276222111,0.0498854,87898.0,87887.0,0.00014829]
[1767276222348,0.0498854,87898.0,87887.0,0.01152653]
[1767276222940,0.05601394,87898.0,87887.0,0.01152653]
[1767276223531,0.05601394,87898.0,87887.0,0.00014829]
[1767276223750,0.05601394,87898.0,87887.0,0.01152653]
[1767276224121,0.13648772,87894.0,87887.0,0.00014829]
[1767276224937,0.13648772,87894.0,87887.0,0.01152653]
[1767276225170,0.13648772,87894.0,87887.0,0.00014829]
[1767276227231,0.13648772,87894.0,87887.0,0.01152653]
[1767276227928,0.13648772,87894.0,87887.0,0.00014829]
[1767276228329,0.13648772,87894.0,87887.0,0.01152653]
[1767276228534,0.13648772,87894.0,87887.0,0.00014829]
[1767276228738,0.13648772,87894.0,87887.0,0.01152653]
[1767276228921,0.13648772,87894.0,87887.0,0.00014829]
[1767276230544,0.000148,87887.0,87881.0,0.00010583]
[1767276230743,0.0498854,87886.0,87881.0,0.00010583]
[1767276233356,0.0498854,87886.0,87881.0,8.3e-07]
[1767276235464,0.0612854,87886.0,87881.0,8.3e-07]
[1767276237397,0.00612854,87885.0,87881.0,8.3e-07]
[1767276237758,0.0114,87886.0,87881.0,8.3e-07]
[1767276237957,0.0114,87887.0,87881.0,8.3e-07]
[1767276238789,0.00612854,87898.0,87881.0,8.3e-07]
[1767276238790,0.04957026,87896.0,87881.0,8.3e-07]
[1767276238951,0.13648772,87893.0,87887.0,0.00055]
[1767276239411,0.13648772,87893.0,87882.0,0.04539167]
[1767276239831,0.13648772,87893.0,87882.0,0.05677056]
[1767276240031,0.0114,87892.0,87882.0,0.04539167]
[1767276240600,0.0114,87892.0,87882.0,0.05677056]
[1767276240799,0.0114,87892.0,87882.0,0.04539167]
[1767276241798,0.0114,87892.0,87883.0,0.01137876]
[1767276242024,0.0114,87891.0,87883.0,0.01137876]
[1767276242224,0.0114,87891.0,87882.0,0.04539167]
[1767276242444,0.0114,87891.0,87882.0,0.05677056]
[1767276242616,0.13648772,87892.0,87885.0,0.0113785]
[1767276242819,0.08648772,87892.0,87888.0,0.04539167]
[1767276243019,0.08648772,87892.0,87888.0,0.01137811]
[1767276243226,0.0114,87894.0,87892.0,0.00055]
[1767276243430,0.0114,87894.0,87888.0,0.01137811]
[1767276243669,0.0114,87894.0,87890.0,0.01137785]
[1767276243850,0.0114,87894.0,87889.0,0.01137798]
[1767276243997,0.04957026,87901.0,87889.0,0.01137798]
[1767276244199,0.04658523,87900.0,87890.0,0.01137785]
[1767276244515,0.04658523,87899.0,87890.0,0.45648183]
[1767276244745,0.02455692,87898.0,87890.0,0.45648183]
[1767276245279,0.0114,87897.0,87890.0,0.01137785]
[1767276245561,0.02455692,87896.0,87891.0,0.01137772]
[1767276245716,0.0114,87898.0,87891.0,0.01137772]
[1767276245914,0.02457423,87897.0,87892.0,0.01137759]
[1767276246544,0.02457423,87897.0,87893.0,0.01137747]
[1767276246749,0.18605798,87908.0,87896.0,0.01137708]
[1767276246910,0.0220415,87907.0,87898.0,0.44510398]
[1767276247116,0.0106415,87906.0,87896.0,0.01137708]
[1767276247322,0.0114,87905.0,87896.0,0.01137708]
[1767276247528,0.0106415,87904.0,87896.0,0.01137708]
[1767276248058,0.0106415,87904.0,87895.0,0.01137721]
[1767276248219,0.0106415,87904.0,87896.0,0.01137708]
[1767276248798,0.04957026,87903.0,87895.0,0.01137721]
[1767276248958,0.04957026,87901.0,87896.0,0.01137708]
[1767276253639,0.04957026,87901.0,87895.0,0.01137721]
[1767276253851,0.04957026,87901.0,87896.0,0.01137708]
[1767276255423,0.04957026,87901.0,87897.0,0.01137695]
[1767276256522,0.04957026,87901.0,87896.0,0.01137708]
[1767276257925,0.04957026,87901.0,87898.0,0.01137682]
[1767276258455,0.04957026,87901.0,87897.0,0.01137695]
[1767276258606,0.02457829,87900.0,87897.0,0.01137695]
[1767276259048,0.0114,87903.0,87897.0,0.01137695]
[1767276259257,0.02457819,87902.0,87897.0,0.01137695]
[1767276259452,0.02457819,87902.0,87898.0,0.01137682]
[1767276259653,0.02457819,87902.0,87896.0,0.01137708]
[1767276259969,0.02457819,87902.0,87897.0,0.01137695]
[1767276260838,0.02457819,87902.0,87896.0,0.01137708]
[1767276261067,0.02457819,87902.0,87897.0,0.01137695]
[1767276261468,0.02457819,87902.0,87896.0,0.01137708]
[1767276261618,0.02457819,87902.0,87897.0,0.01137695]
[1767276263596,0.02457819,87902.0,87898.0,0.01137682]
[1767276263974,0.000549,87898.0,87896.0,0.01137708]
[1767276264429,0.02457819,87901.0,87895.0,0.01137721]
[1767276264430,0.00055,87896.0,87895.0,0.01137721]
[1767276264637,0.04507637,87900.0,87896.0,0.01137708]
[1767276264898,0.04507637,87900.0,87895.0,0.01137721]
[1767276265101,0.04507637,87900.0,87896.0,0.01137708]
[1767276266638,0.04507637,87900.0,87895.0,0.01137721]
[1767276268443,0.04507637,87900.0,87896.0,0.01137708]
[1767276268934,0.04507637,87900.0,87897.0,0.01137695]
[1767276271464,0.02459502,87899.0,87897.0,0.01137695]
[1767276271986,0.04507637,87904.0,87897.0,0.06826107]
[1767276272188,0.03523946,87903.0,87897.0,0.06826107]
[1767276272408,0.05572087,87902.0,87897.0,0.06826107]
[1767276272559,0.03523946,87901.0,87899.0,0.01137669]
[1767276272766,0.02459496,87901.0,87899.0,0.01137669]
[1767276275125,0.03072718,87914.0,87907.0,0.05687829]
[1767276275332,0.0114,87912.0,87907.0,0.05687829]
[1767276275440,0.0114,87912.0,87906.0,0.01137578]
[1767276275654,0.0114,87914.0,87906.0,0.01137578]
[1767276275974,0.0114,87914.0,87907.0,0.05687829]
[1767276276178,1e-08,87909.0,87907.0,0.05687829]
[1767276283353,0.13644479,87913.0,87911.0,0.05687565]
[1767276283519,0.18152116,87913.0,87911.0,0.05687565]
[1767276284494,0.18162713,87913.0,87911.0,0.05687565]
[1767276286839,0.00010597,87913.0,87911.0,0.05687565]
[1767276286999,0.0001483,87918.0,87915.0,0.06824747]
[1767276287205,0.00023269,87918.0,87915.0,0.06769847]
[1767276287717,0.00023269,87918.0,87915.0,0.01082562]
[1767276287901,0.00023269,87918.0,87915.0,0.01137462]
[1767276288713,0.00023269,87918.0,87915.0,0.00972715]
[1767276289957,0.00023269,87918.0,87914.0,0.01137475]
[1767276290159,0.00023269,87918.0,87915.0,0.01137462]
[1767276291399,0.00055,87915.0,87914.0,0.01137475]
[1767276291799,0.00023269,87918.0,87914.0,0.01137475]
[1767276292462,0.04530906,87918.0,87915.0,0.01137462]
[1767276292662,0.04530906,87918.0,87914.0,0.01137475]
[1767276293704,0.04530906,87918.0,87915.0,0.01137462]
[1767276293907,0.04530906,87918.0,87914.0,0.01137475]
[1767276294569,0.04530906,87918.0,87915.0,0.01137462]
[1767276297911,0.04530906,87918.0,87786.0,0.16858]
[1767276298107,0.04530906,87918.0,87914.0,0.01137475]
[1767276298336,0.04530906,87918.0,87911.0,0.01137514]
[1767276298876,0.04530906,87918.0,87914.0,0.01137475]
[1767276299274,0.02457025,87917.0,87914.0,0.01137475]
[1767276299479,0.0707973,87917.0,87914.0,0.01137475]
[1767276299680,0.04622705,87917.0,87914.0,0.01137475]
[1767276300704,0.00023269,87918.0,87914.0,0.01137475]
[1767276300908,0.04645974,87918.0,87915.0,0.01137462]
[1767276301123,0.02457302,87917.0,87915.0,0.01137462]
[1767276302321,0.02458152,87916.0,87914.0,0.01137475]
[1767276302534,0.00023269,87918.0,87914.0,0.01137475]
[1767276302743,0.04645974,87918.0,87914.0,0.01137475]
[1767276302942,0.02458152,87917.0,87914.0,0.01137475]
[1767276304428,0.0106475,87916.0,87914.0,0.01137475]
[1767276304633,0.02458152,87917.0,87914.0,0.01137475]
[1767276304906,0.02458152,87917.0,87916.0,0.000549]
[1767276305107,0.03522904,87917.0,87914.0,0.06824799]
[1767276305350,0.01064752,87916.0,87914.0,0.06824799]
[1767276305561,0.02458152,87917.0,87914.0,0.06824799]
[1767276305733,0.01064825,87916.0,87914.0,0.06824799]
[1767276305934,0.02458152,87917.0,87914.0,0.06824799]
[1767276306136,0.01064825,87916.0,87914.0,0.06824799]
[1767276306283,0.02458152,87917.0,87914.0,0.06824799]
[1767276306479,0.01064895,87916.0,87914.0,0.06824799]
[1767276306683,0.02458152,87917.0,87914.0,0.06824799]
[1767276309658,0.02458152,87916.0,87915.0,0.01137462]
[1767276310080,0.00023269,87918.0,87915.0,0.01137462]
[1767276310246,0.04645974,87918.0,87915.0,0.01137462]
[1767276310453,0.02458152,87917.0,87915.0,0.01137462]
[1767276311381,0.02458152,87917.0,87915.0,0.06824717]
[1767276311879,0.00023269,87918.0,87915.0,0.06824717]
[1767276311880,0.02458152,87916.0,87915.0,0.06824717]
[1767276312442,0.00023269,87918.0,87915.0,0.01137462]
[1767276313000,0.04645974,87918.0,87915.0,0.01137462]
[1767276313322,0.02458152,87917.0,87915.0,0.01137462]
[1767276316797,0.02458152,87917.0,87915.0,0.01082562]
[1767276317926,0.02458152,87917.0,87915.0,0.06769822]
[1767276318131,0.02403252,87917.0,87915.0,0.06769822]
[1767276318736,0.01065415,87916.0,87915.0,0.06769822]
[1767276319256,0.01061207,87916.0,87915.0,0.06769822]
[1767276320525,0.01006207,87916.0,87915.0,0.06769822]
[1767276326386,0.00023269,87918.0,87917.0,0.05687182]
[1767276326596,0.0114,87922.0,87921.0,0.05632023]
[1767276326794,0.0114,87922.0,87920.0,0.01137397]
[1767276327239,0.04626041,87921.0,87920.0,0.01137397]
[1767276327977,0.04681041,87920.0,87919.0,0.0113741]
[1767276328178,0.04626041,87920.0,87917.0,0.05687123]
[1767276329932,0.04626041,87920.0,87919.0,0.0113741]
[1767276330237,0.07086181,87920.0,87919.0,0.0113741]
[1767276332932,0.07086181,87920.0,87919.0,0.0108241]
[1767276333543,0.07086181,87920.0,87919.0,0.00660589]
[1767276335167,0.07031281,87920.0,87919.0,0.00660589]
[1767276337844,0.0114,87925.0,87920.0,0.05686988]
[1767276338048,0.05766041,87925.0,87920.0,0.05686988]
[1767276338210,0.05766041,87925.0,87919.0,0.00660589]
[1767276338418,0.0106483,87924.0,87919.0,0.00660589]
[1767276338740,0.00065762,87927.0,87924.0,0.00772036]
[1767276338937,0.00065762,87927.0,87923.0,0.01137358]
[1767276339087,0.13648772,87925.0,87924.0,0.01137345]
[1767276339485,0.13648772,87925.0,87923.0,0.01082458]
[1767276340268,0.00055,87923.0,87921.0,0.01137384]
[1767276340829,0.13648772,87925.0,87922.0,0.01137371]
[1767276341244,0.13648772,87925.0,87921.0,0.01137384]
[1767276341470,0.13648772,87925.0,87922.0,0.01137371]
[1767276341701,0.13648772,87925.0,87922.0,0.01082371]
[1767276344445,0.13593872,87925.0,87922.0,0.01082371]
[1767276345299,0.13593872,87925.0,87922.0,0.06769169]
[1767276346716,0.13593872,87925.0,87923.0,0.05686744]
[1767276349390,0.04626041,87932.0,87930.0,0.01137268]
[1767276349391,0.0114,87932.0,87930.0,0.01137268]
[1767276349522,0.04626041,87938.0,87931.0,0.01137255]
[1767276349743,0.0114,87934.0,87931.0,0.06823515]
[1767276350122,0.04626041,87938.0,87932.0,0.01137242]
[1767276350323,0.0114,87938.0,87932.0,0.01137242]
[1767276350523,0.04626041,87944.0,87932.0,0.01137242]
[1767276350738,0.0114,87940.0,87932.0,0.01137242]
[1767276350954,0.02457481,87939.0,87932.0,0.01137242]
[1767276352348,0.02457481,87939.0,87933.0,0.01137229]
[1767276352559,0.02457481,87939.0,87932.0,0.01137242]
[1767276352840,0.0114,87940.0,87932.0,0.01137242]
[1767276353044,0.02456869,87939.0,87932.0,0.01137242]
[1767276353217,0.0114,87940.0,87932.0,0.01137242]
[1767276353673,0.0114,87940.0,87931.0,0.01137255]
[1767276354202,0.0114,87940.0,87932.0,0.01137242]
[1767276355018,0.0114,87940.0,87933.0,0.01137229]
[1767276355862,0.0114,87940.0,87932.0,0.01137242]
[1767276356061,0.0114,87940.0,87933.0,0.01137229]
[1767276356841,0.04626041,87944.0,87933.0,0.01137229]
[1767276357048,0.0114,87941.0,87933.0,0.01137229]
[1767276357265,0.02456434,87940.0,87933.0,0.01137229]
[1767276359449,0.000549,87933.0,87929.0,0.01137281]
[1767276359865,0.02456434,87939.0,87929.0,0.01137281]
[1767276360069,0.02456434,87939.0,87930.0,0.01137268]
[1767276361241,0.02456434,87939.0,87932.0,0.01137242]
[1767276362297,0.02456434,87939.0,87933.0,0.01137229]
[1767276367566,0.02456434,87939.0,87934.0,0.0568602]
[1767276367735,0.000549,87934.0,87933.0,0.01137229]
[1767276367920,0.0114,87941.0,87933.0,0.06823317]
[1767276368255,0.02457161,87940.0,87933.0,0.06823317]
[1767276368463,1e-08,87936.0,87935.0,0.05686018]
[1767276375517,1e-08,87936.0,87933.0,0.06823317]
[1767276375676,0.000549,87935.0,87933.0,0.06823317]
[1767276376066,1e-08,87936.0,87933.0,0.06823317]
[1767276377298,1e-08,87936.0,87933.0,0.01082329]
[1767276378226,1e-08,87936.0,87932.0,0.0682343]
[1767276379225,1e-08,87936.0,87933.0,0.01137229]
[1767276382258,1e-08,87936.0,87931.0,0.01137255]
[1767276383175,1e-08,87936.0,87933.0,0.01137229]
[1767276386823,1e-08,87936.0,87933.0,0.00870153]
[1767276387702,1e-08,87936.0,87933.0,0.0655625]
[1767276390554,1e-08,87936.0,87933.0,0.00870153]
[1767276391036,1e-08,87936.0,87933.0,0.00864466]
[1767276391462,1e-08,87936.0,87933.0,0.06550555]
[1767276392120,1e-08,87936.0,87933.0,0.00864466]
[1767276392789,0.13648772,87935.0,87924.0,0.06826681]
[1767276393038,0.13648772,87935.0,87846.0,0.05689313]
[1767276393039,0.49133807,87934.0,87913.0,0.01137488]
[1767276393264,0.44469612,87930.0,87916.0,0.01137449]
[1767276393496,0.03524195,87929.0,87917.0,0.01137436]
[1767276393719,0.03524195,87928.0,87916.0,0.01137449]
[1767276393939,0.04664195,87927.0,87918.0,0.01188358]
[1767276394165,0.03524195,87926.0,87918.0,0.01188358]
[1767276394415,0.0114,87927.0,87920.0,0.01137397]
[1767276394632,0.0114,87927.0,87919.0,0.0113741]
[1767276394817,0.0114,87927.0,87918.0,0.01188358]
[1767276397119,0.06661274,87927.0,87918.0,0.01188358]
[1767276397422,0.06661274,87927.0,87919.0,0.0113741]
[1767276397926,0.06661274,87927.0,87918.0,0.01188358]
[1767276398131,0.06661274,87927.0,87919.0,0.0113741]
[1767276398262,0.06661274,87927.0,87918.0,0.01188358]
[1767276398667,0.06661274,87927.0,87918.0,0.00050935]
[1767276398870,0.06661274,87927.0,87918.0,0.01188358]
[1767276399070,0.06661274,87927.0,87918.0,0.00050935]
[1767276400330,0.06661274,87927.0,87918.0,0.01188358]
[1767276400563,0.06661274,87927.0,87919.0,0.0113741]
[1767276402151,0.06661274,87927.0,87914.0,0.01152304]
[1767276402496,0.06661274,87927.0,87914.0,0.00014829]
[1767276402678,0.06661274,87927.0,87915.0,0.01137462]
[1767276402827,0.13648772,87920.0,87908.0,0.05687757]
[1767276403030,0.05521274,87918.0,87908.0,8.439e-05]
[1767276403229,0.05521274,87918.0,87909.0,0.01137539]
[1767276403451,0.05521274,87918.0,87908.0,0.01145991]
[1767276403655,0.05521274,87917.0,87905.0,0.01152421]
[1767276403848,0.05529308,87917.0,87907.0,0.01137565]
[1767276404047,0.05529308,87917.0,87906.0,0.01137578]
[1767276404229,0.05529308,87917.0,87907.0,0.01137565]
[1767276404772,0.05529308,87917.0,87908.0,0.01137552]
[1767276404978,0.05529308,87917.0,87907.0,0.01137565]
[1767276405789,0.05529308,87917.0,87906.0,0.01137578]
[1767276405988,0.05529308,87917.0,87907.0,0.05687829]
[1767276406297,0.05529308,87917.0,87910.0,0.01137527]
[1767276406842,0.06486803,87917.0,87910.0,0.01137527]
[1767276407045,0.05521274,87916.0,87910.0,0.01137527]
[1767276407244,0.05521274,87916.0,87911.0,0.01137514]
[1767276407698,0.05521274,87916.0,87910.0,0.01137527]
[1767276407900,0.05521274,87916.0,87911.0,0.01137514]
[1767276408883,0.05521274,87916.0,87910.0,0.01137527]
[1767276409504,0.05521274,87916.0,87911.0,0.01137514]
[1767276411879,0.05521274,87914.0,87911.0,0.01137514]
[1767276412020,0.05521274,87914.0,87910.0,0.01137527]
[1767276412215,0.05521274,87914.0,87899.0,0.01137669]
[1767276412443,0.05521274,87914.0,87904.0,0.01137604]
[1767276412654,0.05521274,87914.0,87905.0,0.01152421]
[1767276412843,0.05521274,87914.0,87905.0,0.0001483]
[1767276413284,0.05521274,87914.0,87905.0,0.01152421]
[1767276413642,0.05521274,87914.0,87907.0,0.01137565]
[1767276413836,0.05521274,87914.0,87908.0,0.01137552]
[1767276414037,0.05521274,87914.0,87907.0,0.01137565]
[1767276415563,0.05521274,87914.0,87906.0,0.01137578]
[1767276415766,0.05521274,87914.0,87907.0,0.01137565]
[1767276416154,0.12000043,87914.0,87906.0,0.01137578]
[1767276416378,0.12000043,87914.0,87907.0,0.01137565]
[1767276417401,0.05521274,87914.0,87907.0,0.01137565]
[1767276418390,0.05521274,87914.0,87908.0,0.01137552]
[1767276419218,0.05521274,87914.0,87909.0,0.01137539]
[1767276419584,0.05521274,87914.0,87908.0,0.01137552]
[1767276420788,0.05521274,87914.0,87909.0,0.01137539]
[1767276421490,0.05521274,87914.0,87908.0,0.01137552]
[1767276422293,0.05521274,87914.0,87907.0,0.01137565]
[1767276424363,0.05521274,87914.0,87906.0,0.01137578]
[1767276424572,0.05521274,87914.0,87907.0,0.06825347]
[1767276424780,0.05521274,87914.0,87907.0,0.01137565]
[1767276424961,0.06753657,87917.0,87914.0,0.000549]
[1767276425367,0.06753657,87917.0,87908.0,0.01137552]
[1767276425543,0.06753657,87917.0,87909.0,0.01137539]
[1767276427311,0.06753657,87917.0,87910.0,0.01137527]
[1767276428489,0.02458555,87916.0,87909.0,0.01137539]
[1767276429168,0.02458555,87916.0,87910.0,0.01137527]
[1767276430092,0.02458555,87916.0,87909.0,0.01137539]
[1767276430318,0.02458555,87916.0,87910.0,0.01137527]
[1767276430471,0.02458555,87916.0,87909.0,0.01137539]
[1767276430691,0.02458555,87916.0,87913.0,0.01137488]
[1767276430899,0.0114,87925.0,87924.0,0.01137345]
[1767276431096,0.02203821,87925.0,87922.0,0.01137371]
[1767276431442,0.01063821,87924.0,87921.0,0.01137384]
[1767276431647,0.44469612,87932.0,87922.0,0.01137371]
[1767276431874,0.01063934,87926.0,87922.0,0.01137371]
[1767276432037,0.01063934,87925.0,87922.0,0.01137371]
[1767276432242,0.0114,87928.0,87922.0,0.01137371]
[1767276432243,0.01064045,87924.0,87922.0,0.01137371]
[1767276432400,0.0114,87928.0,87922.0,0.01137371]
[1767276432606,0.01064045,87926.0,87922.0,0.01137371]